bitfinex/quotes_BTCUSD_20250825
["timestamp","ask_amount","ask_price","bid_price","bid_amount"]
[1756114420374,5.886044,111680.0,111670.0,0.01529205]
[1756114420588,5.88604529,111680.0,111670.0,0.01529205]
[1756114421543,5.73004529,111680.0,111670.0,0.01529205]
[1756114421762,5.88600529,111680.0,111670.0,0.01529205]
[1756114427145,5.89404343,111680.0,111670.0,0.01529205]
[1756114427573,5.8941481,111680.0,111670.0,0.01529205]
[1756114427790,5.91019712,111680.0,111670.0,0.01529205]
[1756114428007,5.94235244,111680.0,111670.0,0.01529205]
[1756114428225,5.85524279,111680.0,111670.0,0.01529205]
[1756114428442,5.80709572,111680.0,111670.0,0.01529205]
[1756114428672,5.85524673,111680.0,111670.0,0.01529205]
[1756114429364,5.8406354,111680.0,111670.0,0.01529205]
[1756114429566,5.8720444,111680.0,111670.0,0.01529205]
[1756114430026,5.8720445,111680.0,111670.0,0.01529205]
[1756114430385,5.95891493,111680.0,111670.0,0.01529205]
[1756114432479,5.71632528,111680.0,111670.0,0.01529205]
[1756114432685,5.82365821,111680.0,111670.0,0.01529205]
[1756114432868,5.66818138,111680.0,111670.0,0.01529205]
[1756114433045,5.82366138,111680.0,111670.0,0.01529205]
[1756114436208,5.84780023,111680.0,111670.0,0.01529205]
[1756114436421,5.93466988,111680.0,111670.0,0.01529205]
[1756114438283,5.90251062,111680.0,111670.0,0.01529205]
[1756114439413,5.9025355,111680.0,111670.0,0.01529205]
[1756114439919,5.90253553,111680.0,111670.0,0.01529205]
[1756114440727,5.74705553,111680.0,111670.0,0.01529205]
[1756114441010,0.91371603,111680.0,111670.0,0.01529205]
[1756114441455,0.89970173,111680.0,111670.0,0.01529205]
[1756114442185,0.89770173,111680.0,111670.0,0.01429205]
[1756114442662,0.74318173,111680.0,111670.0,0.01529205]
[1756114442915,0.89458173,111680.0,111670.0,0.01429205]
[1756114443155,0.98245138,111680.0,111670.0,0.01429205]
[1756114443366,0.98245138,111680.0,111670.0,0.01529205]
[1756114443933,0.98045138,111680.0,111670.0,0.01429205]
[1756114444133,0.98045138,111680.0,111670.0,0.01329205]
[1756114444305,0.98145138,111680.0,111670.0,0.01429205]
[1756114444527,0.99545562,111680.0,111670.0,0.01329205]
[1756114445867,0.99645562,111680.0,111670.0,0.01429205]
[1756114446077,0.99845562,111680.0,111670.0,0.01529205]
[1756114447847,1.05266262,111680.0,111670.0,0.01529205]
[1756114448084,1.06732349,111680.0,111670.0,0.01529205]
[1756114448495,0.98045338,111680.0,111670.0,0.01529205]
[1756114452632,0.96643953,111680.0,111670.0,0.01529205]
[1756114453678,0.96638082,111680.0,111670.0,0.01529205]
[1756114454368,0.9663802,111680.0,111670.0,0.01529205]
[1756114455000,0.96637939,111680.0,111670.0,0.01529205]
[1756114455879,0.98039327,111680.0,111670.0,0.01529205]
[1756114456334,1.06726292,111680.0,111670.0,0.01529205]
[1756114457661,1.05050757,111680.0,111670.0,0.01529205]
[1756114457879,1.0672634,111680.0,111670.0,0.01529205]
[1756114460967,5.94512433,111680.0,111670.0,0.01529205]
[1756114465466,5.93111045,111680.0,111670.0,0.01529205]
[1756114466130,6.05523813,111680.0,111670.0,0.01529205]
[1756114466348,6.49373813,111680.0,111670.0,0.01529205]
[1756114466568,6.05523813,111680.0,111670.0,0.01529205]
[1756114467472,6.05524226,111680.0,111670.0,0.01529205]
[1756114467895,6.04686388,111680.0,111670.0,0.01529205]
[1756114468107,6.05524169,111680.0,111670.0,0.01529205]
[1756114468325,6.03111401,111680.0,111670.0,0.01529205]
[1756114468683,6.04512826,111680.0,111670.0,0.01529205]
[1756114469096,6.04416826,111680.0,111670.0,0.01529205]
[1756114469730,6.06829594,111680.0,111670.0,0.01529205]
[1756114471584,6.05428169,111680.0,111670.0,0.01529205]
[1756114473265,0.51909913,111670.0,111660.0,0.0004]
[1756114473477,5.66285209,111670.0,111660.0,0.0004]
[1756114473667,5.81713209,111670.0,111660.0,0.0004]
[1756114473871,5.84402454,111670.0,111660.0,0.0004]
[1756114474724,5.84602454,111670.0,111660.0,0.0014]
[1756114474912,5.86003986,111670.0,111660.0,0.0014]
[1756114475314,5.52103986,111670.0,111660.0,0.0024]
[1756114475736,5.52003986,111670.0,111660.0,0.0014]
[1756114476113,5.52103986,111670.0,111660.0,0.0024]
[1756114476324,5.52103986,111670.0,111660.0,1e-08]
[1756114476325,5.36679986,111670.0,111660.0,1e-08]
[1756114476528,5.52099986,111670.0,111660.0,1e-08]
[1756114477147,5.86098059,111670.0,111660.0,1e-08]
[1756114477353,5.70678059,111670.0,111660.0,1e-08]
[1756114477556,5.85894059,111670.0,111660.0,1e-08]
[1756114477766,5.86293813,111670.0,111660.0,1e-08]
[1756114478119,0.61911517,111660.0,111650.0,0.50045]
[1756114478346,5.8755368,111660.0,111650.0,0.50045]
[1756114478743,5.9024758,111660.0,111650.0,0.50045]
[1756114479165,5.9024358,111660.0,111650.0,0.50045]
[1756114479989,0.61913121,111650.0,111640.0,0.00161464]
[1756114480193,5.88581989,111650.0,111640.0,0.00161464]
[1756114480608,5.91273135,111650.0,111640.0,0.00161464]
[1756114480843,5.92675004,111650.0,111640.0,0.00161464]
[1756114481287,5.92675004,111650.0,111640.0,0.00209535]
[1756114481721,5.93175004,111650.0,111640.0,0.00209535]
[1756114482447,5.93475004,111650.0,111640.0,0.00209535]
[1756114483732,5.92073135,111650.0,111640.0,0.00209535]
[1756114484787,6.39934617,111650.0,111640.0,0.00209535]
[1756114486045,5.96084617,111650.0,111640.0,1e-08]
[1756114486272,0.61914725,111640.0,111630.0,0.08029595]
[1756114486426,0.5191633,111630.0,111610.0,0.50047834]
[1756114486641,5.65458628,111630.0,111620.0,0.00052925]
[1756114486863,5.65458628,111630.0,111610.0,0.50047834]
[1756114486864,0.51917935,111620.0,111610.0,0.50047834]
[1756114487117,5.75186308,111620.0,111610.0,0.50062263]
[1756114487337,5.85186308,111620.0,111610.0,0.50062263]
[1756114487980,5.87881008,111620.0,111610.0,0.50062263]
[1756114488622,5.88081008,111620.0,111610.0,0.50062263]
[1756114489062,5.88281008,111620.0,111610.0,0.50062263]
[1756114489707,5.92390432,111620.0,111610.0,0.50062263]
[1756114490341,5.66986432,111620.0,111610.0,0.50062263]
[1756114490780,5.82394432,111620.0,111610.0,0.50062263]
[1756114491177,5.66986432,111620.0,111610.0,0.50062263]
[1756114491390,5.82402432,111620.0,111610.0,0.50062263]
[1756114492586,5.66986432,111620.0,111610.0,0.50062263]
[1756114492793,5.82394432,111620.0,111610.0,0.50062263]
[1756114493521,6.26244432,111620.0,111610.0,0.50062263]
[1756114493760,6.23414762,111620.0,111610.0,0.50062263]
[1756114494021,1.13329662,111620.0,111610.0,0.50062263]
[1756114494226,0.40534059,111620.0,111610.0,0.51807165]
[1756114494436,0.37839359,111620.0,111610.0,0.51812165]
[1756114494872,0.22427359,111620.0,111610.0,0.51812165]
[1756114495085,0.37843359,111620.0,111610.0,0.51812165]
[1756114497431,0.71843359,111620.0,111610.0,0.52008165]
[1756114497926,0.71843359,111620.0,111610.0,1.37422101]
[1756114497927,0.004,111620.0,111610.0,1.37422101]
[1756114498170,0.004,111620.0,111610.0,1.46110576]
[1756114498391,0.004,111620.0,111610.0,1.48803976]
[1756114498838,0.002,111620.0,111610.0,1.64215976]
[1756114499096,0.33326824,111640.0,111610.0,0.7910404]
[1756114499317,0.003,111620.0,111610.0,1.63830523]
[1756114499548,0.003,111620.0,111610.0,1.72518998]
[1756114499985,0.003,111620.0,111610.0,1.57408998]
[1756114500197,0.003,111620.0,111610.0,0.87701062]
[1756114500413,0.002,111620.0,111610.0,1.72812998]
[1756114500625,0.54923914,111650.0,111610.0,0.87701062]
[1756114500835,0.001,111640.0,111630.0,0.01744902]
[1756114501089,0.001,111640.0,111630.0,0.01940902]
[1756114501298,0.001,111640.0,111630.0,0.02578751]
[1756114501519,0.18014725,111640.0,111630.0,0.02466856]
[1756114501739,0.001,111640.0,111630.0,0.02466856]
[1756114501955,0.25915571,111670.0,111630.0,0.98934295]
[1756114501956,0.32807571,111670.0,111630.0,0.98934295]
[1756114502141,0.15396,111660.0,111640.0,1.09096411]
[1756114502414,0.15396,111660.0,111650.0,0.00419914]
[1756114502634,0.15396,111660.0,111650.0,0.00498]
[1756114502841,0.15396,111660.0,111650.0,0.00721914]
[1756114503049,0.31912076,111670.0,111650.0,0.00721914]
[1756114503264,0.15396,111660.0,111650.0,0.00721914]
[1756114503702,0.15396,111660.0,111650.0,0.00621914]
[1756114503930,0.15396,111660.0,111650.0,0.02366816]
[1756114504148,0.15496,111660.0,111650.0,0.02142902]
[1756114504364,0.15396,111660.0,111650.0,0.02142902]
[1756114504573,0.15496,111660.0,111650.0,0.02342902]
[1756114504759,0.15696,111660.0,111650.0,0.02442902]
[1756114506744,0.15696,111660.0,111650.0,0.02666816]
[1756114507179,0.15696,111660.0,111650.0,0.02364816]
[1756114507390,0.003,111660.0,111650.0,0.02364816]
[1756114512512,0.18211517,111660.0,111650.0,0.02140902]
[1756114512961,0.003,111660.0,111650.0,0.02140902]
[1756114513170,0.003,111660.0,111650.0,0.02364816]
[1756114514988,0.003,111660.0,111650.0,0.02476651]
[1756114515201,0.003,111660.0,111650.0,0.02711651]
[1756114515420,0.003,111660.0,111650.0,0.11400126]
[1756114515975,0.003,111660.0,111650.0,0.11064377]
[1756114516381,0.003,111660.0,111650.0,0.11069377]
[1756114517215,0.003,111660.0,111650.0,0.11293291]
[1756114517861,0.003,111660.0,111650.0,0.11058291]
[1756114518277,0.18211517,111660.0,111650.0,0.10834377]
[1756114518780,0.003,111660.0,111650.0,0.10834377]
[1756114519546,0.18211517,111660.0,111650.0,0.10834377]
[1756114519952,0.26898482,111660.0,111650.0,0.10834377]
[1756114520231,0.08986965,111660.0,111650.0,0.10834377]
[1756114520447,0.26898482,111660.0,111650.0,0.10834377]
[1756114521070,0.08986965,111660.0,111650.0,0.10834377]
[1756114521710,0.26898482,111660.0,111650.0,0.10834377]
[1756114522092,0.08986965,111660.0,111650.0,0.10834377]
[1756114522512,0.003,111660.0,111650.0,0.10834377]
[1756114524137,0.003,111660.0,111650.0,0.11069377]
[1756114524350,0.003,111660.0,111650.0,0.10834377]
[1756114525387,0.003,111660.0,111650.0,0.11069377]
[1756114525816,0.01972488,111660.0,111650.0,0.11069377]
[1756114526021,0.01972488,111660.0,111650.0,0.10834377]
[1756114526950,0.19884005,111660.0,111650.0,0.10834377]
[1756114527150,0.01972488,111660.0,111650.0,0.10834377]
[1756114528680,0.01975563,111660.0,111650.0,0.10834377]
[1756114529929,0.10662528,111660.0,111650.0,0.10834377]
[1756114530414,1.14047674,111660.0,111650.0,0.02145902]
[1756114530650,1.14348674,111660.0,111650.0,0.17389902]
[1756114531513,1.15187152,111660.0,111650.0,0.17389902]
[1756114532438,0.8858867,111660.0,111650.0,0.02247902]
[1756114532652,1.06500187,111660.0,111650.0,0.02247902]
[1756114533772,1.06500187,111660.0,111650.0,0.02049902]
[1756114535041,1.05663074,111660.0,111650.0,0.02049902]
[1756114535271,1.06501538,111660.0,111650.0,0.02049902]
[1756114535516,1.15188503,111660.0,111650.0,0.02049902]
[1756114535789,1.30528503,111660.0,111650.0,0.02049902]
[1756114535999,1.30528505,111660.0,111650.0,0.02049902]
[1756114538293,1.30528493,111660.0,111650.0,0.02049902]
[1756114541578,1.21841528,111660.0,111650.0,0.02049902]
[1756114542026,1.06501528,111660.0,111650.0,0.02049902]
[1756114542464,0.36579899,111660.0,111650.0,0.02049902]
[1756114542712,0.02489918,111660.0,111650.0,0.02472816]
[1756114543196,0.03328248,111660.0,111650.0,0.02049902]
[1756114543425,0.02489918,111660.0,111650.0,0.02049902]
[1756114543650,0.01976918,111660.0,111650.0,0.11273126]
[1756114543867,0.01976918,111660.0,111650.0,0.99631591]
[1756114544000,0.003,111660.0,111650.0,1.02211956]
[1756114544660,0.003,111660.0,111650.0,1.01265569]
[1756114544868,0.002,111660.0,111650.0,1.16405569]
[1756114545037,0.01988147,111680.0,111650.0,1.16405569]
[1756114545038,0.01988147,111680.0,111650.0,1.16305569]
[1756114545255,0.03663948,111680.0,111670.0,0.01744902]
[1756114545461,0.12550125,111680.0,111670.0,0.10433377]
[1756114546670,0.12650125,111680.0,111670.0,0.10633377]
[1756114547144,0.0396316,111680.0,111670.0,0.10633377]
[1756114547755,0.0396316,111680.0,111670.0,0.10832377]
[1756114547961,0.0396316,111680.0,111670.0,0.26168377]
[1756114548412,0.02288147,111680.0,111670.0,0.26168377]
[1756114548642,0.02388147,111680.0,111670.0,0.26368377]
[1756114549022,0.20296456,111680.0,111670.0,0.26368377]
[1756114549352,0.02388147,111680.0,111670.0,0.26368377]
[1756114549528,0.20296456,111680.0,111670.0,0.26169377]
[1756114549779,1.1424505,111680.0,111670.0,0.02144902]
[1756114549984,1.1591821,111680.0,111670.0,0.02144902]
[1756114550188,1.2958105,111680.0,111670.0,0.02144902]
[1756114550673,1.2958105,111680.0,111670.0,0.004]
[1756114550920,1.49917981,111680.0,111670.0,0.004]
[1756114551166,1.65253981,111680.0,111670.0,0.004]
[1756114551585,2.5051561,111680.0,111670.0,0.004]
[1756114551799,2.50515422,111680.0,111670.0,0.004]
[1756114552062,0.79992164,111680.0,111670.0,0.004]
[1756114552289,1.41230828,111680.0,111670.0,0.004]
[1756114552507,0.3806089,111680.0,111670.0,0.00599]
[1756114552738,0.55969199,111680.0,111670.0,0.00599]
[1756114552981,0.3806089,111680.0,111670.0,0.004]
[1756114553194,0.38061008,111680.0,111670.0,0.004]
[1756114553418,1.39558085,111680.0,111670.0,0.004]
[1756114553653,1.4824505,111680.0,111670.0,0.004]
[1756114553889,0.45075112,111680.0,111670.0,0.004]
[1756114554125,1.30336741,111680.0,111670.0,0.004]
[1756114554344,0.35875147,111680.0,111670.0,0.02343902]
[1756114554591,0.01875147,111680.0,111670.0,1.11865006]
[1756114555079,0.01875147,111680.0,111670.0,1.19669937]
[1756114556017,0.01875147,111680.0,111670.0,1.03417006]
[1756114556254,0.01875147,111680.0,111670.0,1.18753006]
[1756114556479,0.01875147,111680.0,111670.0,0.26607342]
[1756114556694,0.01875147,111680.0,111670.0,0.42178342]
[1756114557167,0.01875147,111680.0,111670.0,1.27439971]
[1756114557396,0.01875147,111680.0,111670.0,1.25361451]
[1756114557820,0.002,111680.0,111670.0,1.25361451]
[1756114558773,0.002,111680.0,111670.0,0.42178342]
[1756114558949,0.002,111680.0,111670.0,1.16674486]
[1756114559389,1.58426314,111720.0,111670.0,1.16674486]
[1756114559610,0.07124566,111700.0,111690.0,0.01744902]
[1756114559822,0.07324566,111700.0,111690.0,0.25769377]
[1756114560257,0.07324566,111700.0,111690.0,0.25765377]
[1756114560481,0.07324566,111700.0,111690.0,0.10433377]
[1756114560747,0.07324566,111700.0,111690.0,0.25765377]
[1756114561262,0.07324566,111700.0,111690.0,0.10632377]
[1756114561476,0.07324566,111700.0,111690.0,0.25765377]
[1756114561696,0.07637566,111700.0,111690.0,0.25765377]
[1756114561910,0.07737566,111700.0,111690.0,0.17076902]
[1756114562139,0.00314403,111700.0,111690.0,0.17275902]
[1756114562412,0.00114403,111700.0,111690.0,0.19015992]
[1756114562659,0.00414403,111700.0,111690.0,0.19115992]
[1756114562878,0.00414403,111700.0,111690.0,0.19439992]
[1756114563317,0.00414403,111700.0,111690.0,0.26388377]
[1756114563560,0.00414403,111700.0,111690.0,1.09571486]
[1756114564475,0.00414403,111700.0,111690.0,0.26388377]
[1756114564697,0.00827403,111700.0,111690.0,0.26064377]
[1756114564950,0.00927403,111700.0,111690.0,0.26165377]
[1756114565829,0.00314403,111700.0,111690.0,0.26264377]
[1756114566055,0.00114403,111700.0,111690.0,0.29237315]
[1756114566275,0.00114403,111700.0,111690.0,1.12720424]
[1756114566276,0.00214403,111700.0,111690.0,1.12720424]
[1756114566505,0.00214403,111700.0,111690.0,1.12725424]
[1756114570100,0.00214403,111700.0,111690.0,0.29542315]
[1756114570318,0.00214403,111700.0,111690.0,1.12721424]
[1756114572057,0.00214403,111700.0,111690.0,0.29538315]
[1756114573772,0.00214403,111700.0,111690.0,0.14210315]
[1756114574021,0.00214403,111700.0,111690.0,0.29538315]
[1756114574663,0.00429403,111700.0,111690.0,0.13886315]
[1756114574875,0.00214403,111700.0,111690.0,0.26865377]
[1756114576467,0.00214403,111700.0,111690.0,0.26565377]
[1756114576916,0.00429403,111700.0,111690.0,0.26565377]
[1756114577837,0.00214403,111700.0,111690.0,0.11537377]
[1756114578044,0.00214403,111700.0,111690.0,0.26865377]
[1756114578185,0.00214403,111700.0,111690.0,0.35552342]
[1756114579228,0.00214403,111700.0,111690.0,1.20734756]
[1756114580086,0.00214403,111700.0,111690.0,0.35552342]
[1756114580300,0.00214403,111700.0,111690.0,1.12047791]
[1756114580511,0.00214403,111700.0,111690.0,0.26865377]
[1756114580716,0.00214403,111700.0,111690.0,1.12047791]
[1756114583889,0.00214403,111700.0,111690.0,0.26865377]
[1756114585163,0.00214403,111700.0,111690.0,1.18931791]
[1756114585345,0.00214403,111700.0,111690.0,1.27618756]
[1756114586328,0.00214403,111700.0,111690.0,0.42436342]
[1756114586530,0.00214403,111700.0,111690.0,1.18931791]
[1756114590036,0.00214403,111700.0,111690.0,1.70838497]
[1756114590913,0.00014403,111700.0,111690.0,1.87929297]
[1756114591132,0.00014403,111700.0,111690.0,1.87925297]
[1756114591341,0.00014403,111700.0,111690.0,1.70418591]
[1756114591544,0.00114403,111700.0,111690.0,1.79105556]
[1756114591745,0.00214403,111700.0,111690.0,1.79505556]
[1756114593222,0.00214403,111700.0,111690.0,1.64181556]
[1756114593431,0.00214403,111700.0,111690.0,1.79505556]
[1756114594536,0.00214403,111700.0,111690.0,1.64181556]
[1756114594737,0.00214403,111700.0,111690.0,1.79505556]
[1756114595666,0.00214403,111700.0,111690.0,1.76814756]
[1756114595868,0.00214403,111700.0,111690.0,1.77734956]
[1756114596709,0.00214403,111700.0,111690.0,1.87174956]
[1756114596916,0.00214403,111700.0,111690.0,1.77734956]
[1756114601234,0.00214403,111700.0,111690.0,1.62734956]
[1756114601437,0.00214403,111700.0,111690.0,1.77734956]
[1756114601609,0.00214403,111700.0,111690.0,0.77228542]
[1756114602201,0.00214403,111700.0,111690.0,0.92548542]
[1756114602677,0.00214403,111700.0,111690.0,0.77228542]
[1756114602884,0.00214403,111700.0,111690.0,0.92548542]
[1756114604730,0.00214403,111700.0,111690.0,1.77730956]
[1756114605139,0.00214403,111700.0,111690.0,0.92548542]
[1756114605466,0.00214403,111700.0,111690.0,1.77730956]
[1756114606069,0.00214403,111700.0,111690.0,1.62730956]
[1756114606314,0.00214403,111700.0,111690.0,1.77730956]
[1756114610024,0.00410403,111700.0,111690.0,1.77430956]
[1756114610789,0.00704403,111700.0,111690.0,0.43049542]
[1756114610957,0.00704403,111700.0,111690.0,0.32617675]
[1756114611673,0.00704403,111700.0,111690.0,0.34362577]
[1756114612499,0.85886817,111700.0,111690.0,0.17297675]
[1756114612709,0.85886817,111700.0,111690.0,0.31697475]
[1756114612942,0.85886817,111700.0,111690.0,0.18122377]
[1756114613160,0.85886817,111700.0,111690.0,0.16377475]
[1756114613383,0.85886817,111700.0,111690.0,0.31697475]
[1756114613592,0.85886817,111700.0,111690.0,0.33442377]
[1756114614326,0.85786817,111700.0,111690.0,0.33042377]
[1756114614618,0.85986817,111700.0,111690.0,0.33142377]
[1756114615049,0.85886817,111700.0,111690.0,0.32742377]
[1756114615329,0.00704403,111700.0,111690.0,0.36325755]
[1756114615588,0.00704403,111700.0,111690.0,0.36425755]
[1756114616029,0.00704403,111700.0,111690.0,0.36325755]
[1756114616953,0.00704403,111700.0,111690.0,0.36525755]
[1756114619694,0.00704403,111700.0,111690.0,0.32938377]
[1756114620116,0.00214403,111700.0,111690.0,1.18642791]
[1756114620556,0.00214403,111700.0,111690.0,1.21334091]
[1756114620763,0.00214403,111700.0,111690.0,1.18642791]
[1756114621649,0.00214403,111700.0,111690.0,1.21333991]
[1756114621902,0.00214403,111700.0,111690.0,1.30020956]
[1756114623540,0.00214403,111700.0,111690.0,0.44838542]
[1756114625265,0.00214403,111700.0,111690.0,0.44638542]
[1756114625476,0.00314403,111700.0,111690.0,0.44838542]
[1756114625681,0.00114403,111700.0,111690.0,0.44838542]
[1756114625893,0.00114403,111700.0,111690.0,0.36151577]
[1756114626342,0.00114403,111700.0,111690.0,1.21333991]
[1756114626555,0.00214403,111700.0,111690.0,1.21533991]
[1756114627432,0.00214403,111700.0,111690.0,0.36351577]
[1756114630411,0.00214403,111700.0,111690.0,1.21533991]
[1756114630639,0.00214403,111700.0,111690.0,1.30220956]
[1756114631095,0.00214403,111700.0,111690.0,1.82127662]
[1756114631341,0.00214403,111700.0,111690.0,2.27127662]
[1756114631965,0.00114403,111700.0,111690.0,2.26827662]
[1756114632261,0.00214403,111700.0,111690.0,2.27227662]
[1756114632676,0.00214403,111700.0,111690.0,2.11911662]
[1756114632884,0.00014403,111700.0,111690.0,2.26627662]
[1756114633085,0.00014403,111700.0,111690.0,2.27027662]
[1756114633344,0.00214403,111700.0,111690.0,2.12211662]
[1756114633518,0.00214403,111700.0,111690.0,2.27523662]
[1756114633726,0.00214403,111700.0,111690.0,2.3161962]
[1756114634479,0.00114403,111700.0,111690.0,2.3121962]
[1756114634689,0.00114403,111700.0,111690.0,2.3151962]
[1756114634899,0.00214403,111700.0,111690.0,2.3151962]
[1756114635585,0.00214403,111700.0,111690.0,2.5833962]
[1756114636880,0.00214403,111700.0,111690.0,2.5899762]
[1756114637736,0.00214403,111700.0,111690.0,2.4368562]
[1756114637941,0.00214403,111700.0,111690.0,2.5899762]
[1756114638149,0.00214403,111700.0,111690.0,2.4368562]
[1756114638359,0.00114403,111700.0,111690.0,2.5849762]
[1756114638613,0.00014403,111700.0,111690.0,2.5819762]
[1756114638839,0.00114403,111700.0,111690.0,2.60919798]
[1756114639064,0.00214403,111700.0,111690.0,2.61619798]
[1756114639286,0.00214403,111700.0,111690.0,2.46307798]
[1756114639496,0.00214403,111700.0,111690.0,2.5949762]
[1756114639917,0.00214403,111700.0,111690.0,2.4418562]
[1756114640136,0.00214403,111700.0,111690.0,2.5949762]
[1756114641434,0.00214403,111700.0,111690.0,2.5949362]
[1756114643221,0.00214403,111700.0,111690.0,2.4418562]
[1756114643489,0.00214403,111700.0,111690.0,2.5949362]
[1756114644105,0.00214403,111700.0,111690.0,2.4418562]
[1756114644329,0.00214403,111700.0,111690.0,2.5949362]
[1756114646221,0.00214403,111700.0,111690.0,2.4418562]
[1756114646441,0.00214403,111700.0,111690.0,2.5949362]
[1756114648725,0.00214403,111700.0,111690.0,2.2948962]
[1756114649049,0.00214403,111700.0,111690.0,2.3948962]
[1756114649871,0.00214403,111700.0,111690.0,2.3883162]
[1756114650719,0.00214403,111700.0,111690.0,2.2352762]
[1756114650922,0.00214403,111700.0,111690.0,2.3883162]
[1756114653241,0.00214403,111700.0,111690.0,2.6034362]
[1756114654943,0.00214403,111700.0,111690.0,2.6100162]
[1756114656148,0.00214403,111700.0,111690.0,2.6034362]
[1756114660336,0.00214403,111700.0,111690.0,1.75161206]
[1756114660553,0.00214403,111700.0,111690.0,2.6034362]
[1756114661324,0.00214403,111700.0,111690.0,2.6100162]
[1756114662071,0.00214403,111700.0,111690.0,2.7044162]
[1756114663820,0.07110163,111720.0,111710.0,0.34648402]
[1756114664062,0.07362233,111720.0,111710.0,0.46672615]
[1756114664294,0.92544647,111720.0,111710.0,0.29927713]
[1756114664525,0.92544647,111720.0,111710.0,0.66618313]
[1756114664992,0.92544647,111720.0,111710.0,0.68363215]
[1756114665253,0.07462233,111720.0,111710.0,0.68659215]
[1756114665771,0.07775233,111720.0,111710.0,0.68759215]
[1756114666047,0.07775233,111720.0,111710.0,0.53463215]
[1756114666309,0.07775233,111720.0,111710.0,0.68759215]
[1756114668892,0.0066507,111720.0,111710.0,0.68759215]
[1756114669829,0.85847484,111720.0,111710.0,0.13523977]
[1756114670039,0.85847484,111720.0,111710.0,0.27075075]
[1756114670893,0.85847484,111720.0,111710.0,0.28819977]
[1756114671592,0.85847484,111720.0,111710.0,0.28719977]
[1756114672605,0.85747484,111720.0,111710.0,0.28419977]
[1756114672807,0.85847484,111720.0,111710.0,0.34761975]
[1756114673018,0.85747484,111720.0,111710.0,0.34661975]
[1756114673434,0.85847484,111720.0,111710.0,0.34761975]
[1756114673846,0.0066507,111720.0,111710.0,0.34761975]
[1756114674052,0.85847484,111720.0,111710.0,0.34761975]
[1756114674535,0.0066507,111720.0,111710.0,0.34761975]
[1756114674768,0.0035207,111720.0,111710.0,1.20151389]
[1756114675414,0.0035207,111720.0,111710.0,1.27035389]
[1756114676487,0.0035207,111720.0,111710.0,0.41852975]
[1756114678631,0.0014807,111720.0,111710.0,1.27341389]
[1756114678878,0.0014807,111720.0,111710.0,1.61341389]
[1756114680050,0.0014807,111720.0,111710.0,0.76158975]
[1756114680678,0.0035207,111720.0,111710.0,0.76158975]
[1756114680889,0.0035207,111720.0,111710.0,0.60354975]
[1756114681130,0.0035207,111720.0,111710.0,0.75646975]
[1756114681347,0.0066507,111720.0,111710.0,0.75646975]
[1756114681992,0.0035207,111720.0,111710.0,0.75646975]
[1756114682202,0.0035207,111720.0,111710.0,0.75853975]
[1756114684574,0.0035207,111720.0,111710.0,0.76154975]
[1756114685425,0.0014807,111720.0,111710.0,0.76154975]
[1756114686722,0.0014807,111720.0,111710.0,1.61337389]
[1756114686934,0.0014807,111720.0,111710.0,1.79240889]
[1756114687147,0.0014807,111720.0,111710.0,1.94240889]
[1756114688694,0.0014807,111720.0,111710.0,1.94340889]
[1756114688922,0.92292577,111760.0,111720.0,0.54541558]
[1756114689145,0.07124581,111760.0,111740.0,0.10433377]
[1756114689360,0.07124581,111760.0,111750.0,0.15623258]
[1756114689574,0.07261581,111760.0,111750.0,0.27001633]
[1756114689787,0.07261581,111760.0,111750.0,0.26666375]
[1756114690020,0.00151418,111760.0,111750.0,0.26666375]
[1756114690238,0.00151418,111760.0,111750.0,0.3587434]
[1756114690463,0.00414418,111760.0,111750.0,1.22801656]
[1756114690690,0.00151418,111760.0,111750.0,0.37405242]
[1756114690901,0.00151418,111760.0,111750.0,0.37619242]
[1756114691351,0.00351418,111760.0,111750.0,0.22331242]
[1756114691620,0.00351418,111760.0,111750.0,0.37619242]
[1756114691862,0.00151418,111760.0,111750.0,0.37619242]
[1756114692290,0.00651418,111760.0,111750.0,0.37719242]
[1756114692494,0.00514418,111760.0,111750.0,0.37719242]
[1756114692706,0.00514418,111760.0,111750.0,0.37724242]
[1756114693125,0.00514418,111760.0,111750.0,0.22436242]
[1756114693126,0.00314418,111760.0,111750.0,0.22436242]
[1756114693336,0.00314418,111760.0,111750.0,0.37724242]
[1756114693545,0.00014418,111760.0,111750.0,0.22336242]
[1756114693752,0.00114418,111760.0,111750.0,0.37724242]
[1756114694626,0.00114418,111760.0,111750.0,0.22436242]
[1756114694832,0.00114418,111760.0,111750.0,0.37724242]
[1756114695089,0.00214418,111760.0,111750.0,0.13228277]
[1756114695296,0.00351418,111760.0,111750.0,0.28516277]
[1756114695511,0.00351418,111760.0,111750.0,0.13228277]
[1756114695512,0.00251418,111760.0,111750.0,0.13228277]
[1756114695695,0.00251418,111760.0,111750.0,0.28516277]
[1756114696031,0.85433832,111760.0,111750.0,0.28516277]
[1756114696266,0.85433832,111760.0,111750.0,0.32176814]
[1756114696756,1.70616246,111760.0,111750.0,0.11483375]
[1756114696985,1.70616246,111760.0,111750.0,0.24077475]
[1756114697209,0.85433832,111760.0,111750.0,0.25822377]
[1756114698041,0.85433832,111760.0,111750.0,0.10538377]
[1756114698429,0.85433832,111760.0,111750.0,0.25822377]
[1756114699317,0.85433832,111760.0,111750.0,0.10538377]
[1756114699318,1.70616246,111760.0,111750.0,0.10538377]
[1756114699514,1.70616246,111760.0,111750.0,0.25822377]
[1756114699922,1.70616246,111760.0,111750.0,0.10538377]
[1756114700140,1.70616246,111760.0,111750.0,0.25822377]
[1756114700541,1.70516246,111760.0,111750.0,0.25722377]
[1756114700960,1.70516246,111760.0,111750.0,0.10438377]
[1756114701180,1.70516246,111760.0,111750.0,0.25722377]
[1756114701377,0.85333832,111760.0,111750.0,0.25822377]
[1756114701596,0.85733832,111760.0,111750.0,0.25822377]
[1756114702009,0.85633832,111760.0,111750.0,0.25822377]
[1756114702210,0.85833832,111760.0,111750.0,0.25822377]
[1756114702856,0.85533832,111760.0,111750.0,0.25722377]
[1756114703278,0.85533832,111760.0,111750.0,0.25822377]
[1756114703279,0.85733832,111760.0,111750.0,0.25822377]
[1756114704052,0.00551418,111760.0,111750.0,0.25822377]
[1756114704284,0.85733832,111760.0,111750.0,0.25822377]
[1756114707958,0.00551418,111760.0,111750.0,0.25822377]
[1756114708193,0.85733832,111760.0,111750.0,0.25818377]
[1756114708653,0.85615273,111760.0,111750.0,0.25818377]
[1756114710383,0.85615273,111760.0,111750.0,0.26125377]
[1756114710850,0.85615273,111760.0,111750.0,0.29695315]
[1756114711058,0.85615273,111760.0,111750.0,0.29909315]
[1756114711934,0.85615273,111760.0,111750.0,0.29695315]
[1756114712150,0.85615273,111760.0,111750.0,0.25818377]
[1756114713195,0.85615273,111760.0,111750.0,0.26125377]
[1756114713829,0.85615273,111760.0,111750.0,0.26339377]
[1756114715144,0.85615273,111760.0,111750.0,0.26125377]
[1756114715798,0.85615273,111760.0,111750.0,0.26339377]
[1756114718214,0.85615273,111760.0,111750.0,0.26125377]
[1756114718432,0.85615273,111760.0,111750.0,0.25818377]